[Event "*** Titled Tuesday Blitz"]
[Site "Chess.com"]
[Date "2020.05.12"]
[Round "3"]
[White "Alopekos"]
[Black "Zmeeed63"]
[Result "1-0"]
[WhiteElo "2484"]
[BlackElo "2183"]
[TimeControl "180+1"]
[EndTime "10:26:08 PDT"]
[Termination "Alopekos won by resignation"]

1. e4 {[%clk 0:03:00.8]} 1... e6 {[%clk 0:02:59.2]} 2. d4 {[%clk 0:03:00.7]}
2... d6 {[%clk 0:02:59.7]} 3. Nc3 {[%clk 0:02:56.9]} 3... Nd7 {[%clk 0:03:00.2]}
4. Be3 {[%clk 0:02:54.6]} 4... b6 {[%clk 0:03:00.7]} 5. f3 {[%clk 0:02:50.5]}
5... Bb7 {[%clk 0:03:00.9]} 6. Qd2 {[%clk 0:02:50.2]} 6... Be7 {[%clk
0:03:00.6]} 7. O-O-O {[%clk 0:02:49.8]} 7... Ngf6 {[%clk 0:03:00.6]} 8. g4
{[%clk 0:02:49.4]} 8... h6 {[%clk 0:02:58.3]} 9. h4 {[%clk 0:02:46.7]} 9... c5
{[%clk 0:02:55.3]} 10. Nge2 {[%clk 0:02:26.5]} 10... a6 {[%clk 0:02:47.1]} 11.
Bh3 {[%clk 0:01:26.6]} 11... cxd4 {[%clk 0:02:38.6]} 12. Nxd4 {[%clk 0:01:26.2]}
12... Ne5 {[%clk 0:02:38.5]} 13. g5 {[%clk 0:00:56.6]} 13... Nfd7 {[%clk
0:02:32.5]} 14. Qe2 {[%clk 0:00:40.9]} 14... hxg5 {[%clk 0:02:30.2]} 15. hxg5
{[%clk 0:00:40.8]} 15... Qc7 {[%clk 0:02:21]} 16. Bxe6 {[%clk 0:00:36.8]} 16...
Rxh1 {[%clk 0:02:16.9]} 17. Rxh1 {[%clk 0:00:35.4]} 17... fxe6 {[%clk
0:02:13.6]} 18. f4 {[%clk 0:00:24.7]} 18... Nc4 {[%clk 0:02:00.8]} 19. Nxe6
{[%clk 0:00:15.2]} 19... Qc6 {[%clk 0:01:54.3]} 20. Qh5+ {[%clk 0:00:14.8]} 1-0

[Event "*** Titled Tuesday Blitz"]
[Site "Chess.com"]
[Date "2020.05.12"]
[Round "3"]
[White "Masterbeaterr"]
[Black "CraiggoryC"]
[Result "1-0"]
[WhiteElo "2336"]
[BlackElo "2099"]
[TimeControl "180+1"]
[EndTime "10:26:13 PDT"]
[Termination "Masterbeaterr won on time"]

1. d4 {[%clk 0:03:00.9]} 1... Nf6 {[%clk 0:02:59.5]} 2. c4 {[%clk 0:03:00.1]}
2... c6 {[%clk 0:02:58]} 3. Nf3 {[%clk 0:02:58.4]} 3... d5 {[%clk 0:02:58.4]} 4.
e3 {[%clk 0:02:58.5]} 4... e6 {[%clk 0:02:57.5]} 5. Nc3 {[%clk 0:02:57.5]} 5...
Nbd7 {[%clk 0:02:57.3]} 6. b3 {[%clk 0:02:56.2]} 6... Bd6 {[%clk 0:02:52.6]} 7.
Bb2 {[%clk 0:02:56]} 7... O-O {[%clk 0:02:51.6]} 8. Be2 {[%clk 0:02:56.1]} 8...
e5 {[%clk 0:02:47]} 9. dxe5 {[%clk 0:02:55.5]} 9... Nxe5 {[%clk 0:02:47]} 10.
cxd5 {[%clk 0:02:55]} 10... cxd5 {[%clk 0:02:44.1]} 11. O-O {[%clk 0:02:53.9]}
11... Be6 {[%clk 0:02:15.1]} 12. Nb5 {[%clk 0:02:52.2]} 12... Nxf3+ {[%clk
0:02:08.4]} 13. Bxf3 {[%clk 0:02:53.1]} 13... Bb8 {[%clk 0:02:03.7]} 14. Rc1
{[%clk 0:02:48.5]} 14... a6 {[%clk 0:01:53]} 15. Nd4 {[%clk 0:02:46.6]} 15...
Qd6 {[%clk 0:01:43.5]} 16. g3 {[%clk 0:02:46.7]} 16... Ba7 {[%clk 0:01:35.8]}
17. Qd3 {[%clk 0:02:43.2]} 17... Rac8 {[%clk 0:01:31.4]} 18. Rfd1 {[%clk
0:02:41.7]} 18... Nd7 {[%clk 0:01:16.6]} 19. Rxc8 {[%clk 0:02:31.6]} 19... Rxc8
{[%clk 0:01:15.7]} 20. Nxe6 {[%clk 0:02:32]} 20... fxe6 {[%clk 0:01:10.9]} 21.
e4 {[%clk 0:02:30.6]} 21... Qc5 {[%clk 0:00:37.3]} 22. Rd2 {[%clk 0:02:23.7]}
22... Rf8 {[%clk 0:00:17.9]} 23. exd5 {[%clk 0:02:18.3]} 23... exd5 {[%clk
0:00:14.6]} 24. Qxd5+ {[%clk 0:02:04.9]} 24... Qxd5 {[%clk 0:00:10.1]} 25. Bxd5+
{[%clk 0:02:05.8]} 25... Kh8 {[%clk 0:00:09.7]} 26. Bxb7 {[%clk 0:02:05.1]}
26... Nc5 {[%clk 0:00:09.4]} 27. Bg2 {[%clk 0:02:03.7]} 27... Rxf2 {[%clk
0:00:03.2]} 28. Kxf2 {[%clk 0:02:00.3]} 28... Ne4+ {[%clk 0:00:02.6]} 29. Ke1
{[%clk 0:01:59.8]} 1-0

[Event "*** Titled Tuesday Blitz"]
[Site "Chess.com"]
[Date "2020.05.12"]
[Round "3"]
[White "olomi007"]
[Black "ChristopherYoo"]
[Result "0-1"]
[WhiteElo "2651"]
[BlackElo "2909"]
[TimeControl "180+1"]
[EndTime "10:26:23 PDT"]
[Termination "ChristopherYoo won by resignation"]

1. e4 {[%clk 0:03:00.9]} 1... c5 {[%clk 0:02:59.5]} 2. Nf3 {[%clk 0:03:00.6]}
2... e6 {[%clk 0:02:58]} 3. d4 {[%clk 0:03:00.7]} 3... cxd4 {[%clk 0:02:58]} 4.
Nxd4 {[%clk 0:03:01.6]} 4... Nf6 {[%clk 0:02:58.3]} 5. Nc3 {[%clk 0:03:01.8]}
5... Nc6 {[%clk 0:02:58.6]} 6. Ndb5 {[%clk 0:03:01.3]} 6... Bc5 {[%clk
0:02:57.9]} 7. Nd6+ {[%clk 0:02:45.8]} 7... Ke7 {[%clk 0:02:57.1]} 8. Bf4 {[%clk
0:02:46.4]} 8... e5 {[%clk 0:02:55.2]} 9. Nf5+ {[%clk 0:02:46.6]} 9... Kf8
{[%clk 0:02:55.4]} 10. Bg5 {[%clk 0:02:45.2]} 10... d6 {[%clk 0:02:55.5]} 11.
Bc4 {[%clk 0:02:39.1]} 11... h6 {[%clk 0:01:46.3]} 12. Bxf6 {[%clk 0:02:37.6]}
12... Qxf6 {[%clk 0:01:46]} 13. Nd5 {[%clk 0:02:37.8]} 13... Qg5 {[%clk
0:01:43.7]} 14. Nfe3 {[%clk 0:02:36.5]} 14... Be6 {[%clk 0:01:33.8]} 15. O-O
{[%clk 0:02:32.2]} 15... Rc8 {[%clk 0:01:12]} 16. c3 {[%clk 0:02:32.1]} 16... g6
{[%clk 0:01:03.1]} 17. b4 {[%clk 0:02:25.7]} 17... Bxe3 {[%clk 0:01:01.1]} 18.
Nxe3 {[%clk 0:02:19.1]} 18... Bxc4 {[%clk 0:01:01.2]} 19. Nxc4 {[%clk
0:02:08.2]} 19... Kg7 {[%clk 0:01:01.3]} 20. f4 {[%clk 0:01:55.1]} 20... exf4
{[%clk 0:00:55.3]} 21. Qxd6 {[%clk 0:01:52.7]} 21... b5 {[%clk 0:00:25.2]} 22.
Ne3 {[%clk 0:01:30.9]} 22... fxe3 {[%clk 0:00:21.3]} 23. Rxf7+ {[%clk 0:01:30]}
23... Kxf7 {[%clk 0:00:21.5]} 24. Rf1+ {[%clk 0:01:29.4]} 24... Kg7 {[%clk
0:00:20.6]} 25. Qd7+ {[%clk 0:01:26.7]} 25... Qe7 {[%clk 0:00:20.6]} 0-1

[Event "*** Titled Tuesday Blitz"]
[Site "Chess.com"]
[Date "2020.05.12"]
[Round "3"]
[White "r31415"]
[Black "Lunow"]
[Result "1-0"]
[WhiteElo "2323"]
[BlackElo "2067"]
[TimeControl "180+1"]
[EndTime "10:26:27 PDT"]
[Termination "r31415 won on time"]

1. c4 {[%clk 0:03:00.9]} 1... c5 {[%clk 0:02:55.8]} 2. Nf3 {[%clk 0:03:00.8]}
2... Nc6 {[%clk 0:02:54.9]} 3. g3 {[%clk 0:03:01.7]} 3... g6 {[%clk 0:02:52.2]}
4. Bg2 {[%clk 0:03:02.6]} 4... Bg7 {[%clk 0:02:51.3]} 5. O-O {[%clk 0:03:03.5]}
5... e5 {[%clk 0:02:50]} 6. Nc3 {[%clk 0:03:04.4]} 6... Nge7 {[%clk 0:02:49.1]}
7. d3 {[%clk 0:03:02.9]} 7... d6 {[%clk 0:02:48.3]} 8. a3 {[%clk 0:03:02.6]}
8... O-O {[%clk 0:02:47.9]} 9. Rb1 {[%clk 0:03:01]} 9... a5 {[%clk 0:02:47.7]}
10. Ne1 {[%clk 0:02:55.6]} 10... Be6 {[%clk 0:02:42.7]} 11. Nd5 {[%clk
0:02:54.5]} 11... Rb8 {[%clk 0:02:39]} 12. Nc2 {[%clk 0:02:50.6]} 12... b5
{[%clk 0:02:35.6]} 13. cxb5 {[%clk 0:02:47.5]} 13... Rxb5 {[%clk 0:02:36.4]} 14.
Nxe7+ {[%clk 0:02:40.8]} 14... Nxe7 {[%clk 0:02:33]} 15. b4 {[%clk 0:02:41]}
15... cxb4 {[%clk 0:02:01.3]} 16. axb4 {[%clk 0:02:40.9]} 16... Qb8 {[%clk
0:01:59]} 17. Ba3 {[%clk 0:02:37.6]} 17... a4 {[%clk 0:01:58.4]} 18. Qd2 {[%clk
0:02:33]} 18... Rc8 {[%clk 0:01:51]} 19. Rfc1 {[%clk 0:02:31.8]} 19... Ba2
{[%clk 0:01:44.2]} 20. Ra1 {[%clk 0:02:26.3]} 20... Bb3 {[%clk 0:01:43.8]} 21.
Ne3 {[%clk 0:02:25.5]} 21... d5 {[%clk 0:01:09.9]} 22. Rxc8+ {[%clk 0:02:21.6]}
22... Qxc8 {[%clk 0:01:10.8]} 23. Rc1 {[%clk 0:02:21.1]} 23... Qd7 {[%clk
0:01:09.7]} 24. Nc2 {[%clk 0:02:08.1]} 24... Nc6 {[%clk 0:01:00.3]} 25. Na1
{[%clk 0:02:07.3]} 25... Bf8 {[%clk 0:00:42.6]} 26. Nxb3 {[%clk 0:02:07.2]}
26... axb3 {[%clk 0:00:38.7]} 27. Qc3 {[%clk 0:02:04.1]} 27... Nxb4 {[%clk
0:00:36.1]} 28. Qxb3 {[%clk 0:02:03.2]} 28... Na6 {[%clk 0:00:18]} 29. Qa4
{[%clk 0:01:57]} 29... Bxa3 {[%clk 0:00:05.9]} 30. Qxa3 {[%clk 0:01:55.4]} 1-0

[Event "*** Titled Tuesday Blitz"]
[Site "Chess.com"]
[Date "2020.05.12"]
[Round "3"]
[White "francyIM"]
[Black "guillembaches"]
[Result "1-0"]
[WhiteElo "2666"]
[BlackElo "2412"]
[TimeControl "180+1"]
[EndTime "10:26:29 PDT"]
[Termination "francyIM won by checkmate"]

1. d4 {[%clk 0:03:00.9]} 1... Nf6 {[%clk 0:02:59.5]} 2. c4 {[%clk 0:03:00.6]}
2... e6 {[%clk 0:02:59.9]} 3. Nc3 {[%clk 0:03:00.3]} 3... Bb4 {[%clk 0:02:59.4]}
4. g3 {[%clk 0:03:00.6]} 4... Bxc3+ {[%clk 0:02:53.7]} 5. bxc3 {[%clk
0:02:58.6]} 5... c5 {[%clk 0:02:53.5]} 6. Bg2 {[%clk 0:02:57.1]} 6... Nc6 {[%clk
0:02:53.4]} 7. Nf3 {[%clk 0:02:56.3]} 7... d6 {[%clk 0:02:51.7]} 8. Qd3 {[%clk
0:02:52.1]} 8... Qe7 {[%clk 0:02:45.4]} 9. O-O {[%clk 0:02:50.3]} 9... O-O
{[%clk 0:02:42]} 10. e4 {[%clk 0:02:47]} 10... e5 {[%clk 0:02:37.5]} 11. Bg5
{[%clk 0:02:45.2]} 11... b6 {[%clk 0:02:29.9]} 12. d5 {[%clk 0:02:42.4]} 12...
Na5 {[%clk 0:02:22]} 13. Bh4 {[%clk 0:02:42]} 13... Ba6 {[%clk 0:02:17.3]} 14.
Nd2 {[%clk 0:02:41.9]} 14... Qd7 {[%clk 0:01:38.7]} 15. Bxf6 {[%clk 0:02:34.8]}
15... gxf6 {[%clk 0:01:39.6]} 16. f4 {[%clk 0:02:33.4]} 16... Kh8 {[%clk
0:01:32.3]} 17. fxe5 {[%clk 0:02:32.3]} 17... fxe5 {[%clk 0:01:31.9]} 18. Rf6
{[%clk 0:02:32.8]} 18... Rg8 {[%clk 0:01:28.6]} 19. Raf1 {[%clk 0:02:31.7]}
19... Rg7 {[%clk 0:01:28.6]} 20. R1f5 {[%clk 0:02:30.7]} 20... Rf8 {[%clk
0:01:16.6]} 21. Rh5 {[%clk 0:02:28.6]} 21... Rg6 {[%clk 0:01:09.7]} 22. Qf1
{[%clk 0:02:23.8]} 22... Kg7 {[%clk 0:01:06.6]} 23. Bh3 {[%clk 0:02:12.8]} 23...
Qe7 {[%clk 0:00:49.3]} 24. Rf2 {[%clk 0:02:05.4]} 24... Rg5 {[%clk 0:00:46.1]}
25. Rh4 {[%clk 0:02:05.1]} 25... f6 {[%clk 0:00:44.9]} 26. Bf5 {[%clk
0:02:04.8]} 26... h6 {[%clk 0:00:43.3]} 27. Qh3 {[%clk 0:02:01.7]} 27... Rh8
{[%clk 0:00:41.2]} 28. Nf3 {[%clk 0:02:01.2]} 28... Nxc4 {[%clk 0:00:32.9]} 29.
Nxg5 {[%clk 0:01:59.1]} 29... fxg5 {[%clk 0:00:33]} 30. Rh5 {[%clk 0:01:57.8]}
30... Ne3 {[%clk 0:00:31.2]} 31. Be6 {[%clk 0:01:48.1]} 31... Rf8 {[%clk
0:00:28.1]} 32. Rxh6 {[%clk 0:01:41.3]} 32... Rxf2 {[%clk 0:00:23.4]} 33. Rh7+
{[%clk 0:01:41.5]} 33... Kf8 {[%clk 0:00:23.8]} 34. Rh8+ {[%clk 0:01:41.6]}
34... Kg7 {[%clk 0:00:22.8]} 35. Qh6# {[%clk 0:01:42.1]} 1-0

[Event "*** Titled Tuesday Blitz"]
[Site "Chess.com"]
[Date "2020.05.12"]
[Round "3"]
[White "JonahWillow"]
[Black "mamey78"]
[Result "1/2-1/2"]
[WhiteElo "2699"]
[BlackElo "2356"]
[TimeControl "180+1"]
[EndTime "10:26:30 PDT"]
[Termination "Game drawn by agreement"]

1. e4 {[%clk 0:03:00.9]} 1... e5 {[%clk 0:02:59]} 2. Nf3 {[%clk 0:02:59.7]} 2...
Nc6 {[%clk 0:02:59.1]} 3. Nc3 {[%clk 0:02:53.1]} 3... Nf6 {[%clk 0:02:58.5]} 4.
Bb5 {[%clk 0:02:53.6]} 4... Nd4 {[%clk 0:02:57.3]} 5. Bc4 {[%clk 0:02:52.8]}
5... Bc5 {[%clk 0:02:57]} 6. d3 {[%clk 0:02:50.2]} 6... d6 {[%clk 0:02:49.2]} 7.
Na4 {[%clk 0:02:47]} 7... Bg4 {[%clk 0:02:42.3]} 8. Nxc5 {[%clk 0:02:44.3]} 8...
dxc5 {[%clk 0:02:40.1]} 9. Bxf7+ {[%clk 0:02:44.4]} 9... Kxf7 {[%clk 0:02:22.9]}
10. Nxe5+ {[%clk 0:02:44.2]} 10... Kf8 {[%clk 0:02:06.2]} 11. Nxg4 {[%clk
0:02:45.1]} 11... Nxg4 {[%clk 0:02:05.9]} 12. c3 {[%clk 0:02:44.3]} 12... Qh4
{[%clk 0:01:50.9]} 13. g3 {[%clk 0:02:38.5]} 13... Qf6 {[%clk 0:01:45.8]} 14.
Bf4 {[%clk 0:02:11]} 14... h5 {[%clk 0:01:02.8]} 15. cxd4 {[%clk 0:02:10.1]}
15... g5 {[%clk 0:00:56.6]} 16. h3 {[%clk 0:01:54.7]} 16... Nxf2 {[%clk
0:00:52.3]} 17. Kxf2 {[%clk 0:01:55.6]} 17... gxf4 {[%clk 0:00:49]} 18. gxf4
{[%clk 0:01:53.8]} 18... Qxd4+ {[%clk 0:00:47.3]} 19. Kf1 {[%clk 0:01:51.6]}
19... Rd8 {[%clk 0:00:41.9]} 20. Rc1 {[%clk 0:01:46.9]} 20... Rg8 {[%clk
0:00:38.1]} 21. Qe2 {[%clk 0:01:39.4]} 21... Rg3 {[%clk 0:00:35.3]} 22. Rc4
{[%clk 0:01:34.1]} 22... Qxd3 {[%clk 0:00:32.2]} 23. Qxd3 {[%clk 0:01:29.9]}
23... Rdxd3 {[%clk 0:00:32.2]} 24. Rxc5 {[%clk 0:01:27.2]} 24... Rgf3+ {[%clk
0:00:32.3]} 25. Ke2 {[%clk 0:01:25.6]} 25... Rfe3+ {[%clk 0:00:32.1]} 26. Kf2
{[%clk 0:01:26]} 26... Rf3+ {[%clk 0:00:31.9]} 27. Ke2 {[%clk 0:01:25.4]} 27...
Rfe3+ {[%clk 0:00:31.7]} 28. Kf1 {[%clk 0:01:24.1]} 28... Rf3+ {[%clk
0:00:31.7]} 29. Kg2 {[%clk 0:01:23.8]} 29... Rg3+ {[%clk 0:00:31.7]} 1/2-1/2

[Event "*** Titled Tuesday Blitz"]
[Site "Chess.com"]
[Date "2020.05.12"]
[Round "3"]
[White "Sesleria"]
[Black "x-5963514717"]
[Result "0-1"]
[WhiteElo "1983"]
[BlackElo "2466"]
[TimeControl "180+1"]
[EndTime "10:26:32 PDT"]
[Termination "x-5963514717 won by resignation"]

1. e4 {[%clk 0:02:56.2]} 1... e5 {[%clk 0:02:57.7]} 2. Nf3 {[%clk 0:02:53.4]}
2... Nc6 {[%clk 0:02:55.8]} 3. Bb5 {[%clk 0:02:53]} 3... a6 {[%clk 0:02:55.3]}
4. Ba4 {[%clk 0:02:52.8]} 4... g6 {[%clk 0:02:55.5]} 5. O-O {[%clk 0:02:50.3]}
5... Bg7 {[%clk 0:02:55.7]} 6. c3 {[%clk 0:02:46.2]} 6... Nge7 {[%clk
0:02:51.7]} 7. d4 {[%clk 0:02:45.2]} 7... exd4 {[%clk 0:02:52.2]} 8. cxd4 {[%clk
0:02:45.3]} 8... b5 {[%clk 0:02:52.9]} 9. Bb3 {[%clk 0:02:29.1]} 9... O-O {[%clk
0:02:53.8]} 10. Bg5 {[%clk 0:02:21.1]} 10... h6 {[%clk 0:02:53.2]} 11. Bh4
{[%clk 0:02:09.4]} 11... g5 {[%clk 0:02:46.3]} 12. Bg3 {[%clk 0:02:08.8]} 12...
d5 {[%clk 0:02:42.9]} 13. exd5 {[%clk 0:01:39.7]} 13... Nxd5 {[%clk 0:02:41.8]}
14. Nc3 {[%clk 0:01:39.9]} 14... Nb6 {[%clk 0:02:31.9]} 15. d5 {[%clk
0:01:19.2]} 15... Na5 {[%clk 0:02:29.9]} 16. Bc2 {[%clk 0:01:07.7]} 16... Nac4
{[%clk 0:02:03.2]} 17. Qd3 {[%clk 0:01:04.9]} 17... f5 {[%clk 0:01:58.2]} 18. h4
{[%clk 0:00:59.3]} 18... Nxb2 {[%clk 0:01:56]} 19. Qd2 {[%clk 0:00:52.6]} 19...
N6c4 {[%clk 0:01:53.7]} 20. Qc1 {[%clk 0:00:40.9]} 20... g4 {[%clk 0:01:45.6]}
21. Bb3 {[%clk 0:00:29.6]} 21... gxf3 {[%clk 0:01:38]} 22. gxf3 {[%clk
0:00:28.2]} 22... Nd3 {[%clk 0:01:34.7]} 23. Qc2 {[%clk 0:00:26.3]} 23... Nb4
{[%clk 0:01:33.5]} 24. Qe2 {[%clk 0:00:24.5]} 24... Bxc3 {[%clk 0:01:31.7]} 25.
Rac1 {[%clk 0:00:22.6]} 25... Bg7 {[%clk 0:01:29.1]} 26. Bf4 {[%clk 0:00:19.8]}
26... Qxh4 {[%clk 0:01:28.2]} 27. Kg2 {[%clk 0:00:19.1]} 27... Qxf4 {[%clk
0:01:27.9]} 0-1

[Event "*** Titled Tuesday Blitz"]
[Site "Chess.com"]
[Date "2020.05.12"]
[Round "3"]
[White "AtabayevSaparmyrat"]
[Black "Natalya_Buksa"]
[Result "0-1"]
[WhiteElo "2724"]
[BlackElo "2538"]
[TimeControl "180+1"]
[EndTime "10:26:34 PDT"]
[Termination "Natalya_Buksa won on time"]

1. d4 {[%clk 0:02:59.5]} 1... d5 {[%clk 0:03:00]} 2. c4 {[%clk 0:02:59.4]} 2...
e6 {[%clk 0:03:00.5]} 3. Nc3 {[%clk 0:02:59.1]} 3... Nf6 {[%clk 0:03:01]} 4. Bg5
{[%clk 0:02:58.3]} 4... Nbd7 {[%clk 0:02:57.9]} 5. Nf3 {[%clk 0:02:55.1]} 5...
h6 {[%clk 0:02:55.2]} 6. Bxf6 {[%clk 0:02:49.4]} 6... Nxf6 {[%clk 0:02:54.9]} 7.
e3 {[%clk 0:02:47.7]} 7... Be7 {[%clk 0:02:46.7]} 8. Qc2 {[%clk 0:02:43.2]} 8...
O-O {[%clk 0:02:43.8]} 9. O-O-O {[%clk 0:02:42.3]} 9... c6 {[%clk 0:02:34.5]}
10. h4 {[%clk 0:02:37.8]} 10... dxc4 {[%clk 0:02:32.3]} 11. Bxc4 {[%clk
0:02:38.7]} 11... b5 {[%clk 0:02:32.7]} 12. Bd3 {[%clk 0:02:39.1]} 12... Qa5
{[%clk 0:02:32.9]} 13. Kb1 {[%clk 0:02:37.6]} 13... b4 {[%clk 0:02:32.2]} 14.
Ne4 {[%clk 0:02:37.7]} 14... Ba6 {[%clk 0:02:29.9]} 15. Bxa6 {[%clk 0:02:25.6]}
15... Qxa6 {[%clk 0:02:28]} 16. Nxf6+ {[%clk 0:02:25.9]} 16... Bxf6 {[%clk
0:02:25.6]} 17. Ng5 {[%clk 0:02:25.9]} 17... g6 {[%clk 0:02:07.6]} 18. Ne4
{[%clk 0:02:21.5]} 18... Bg7 {[%clk 0:02:04.1]} 19. h5 {[%clk 0:02:19.4]} 19...
g5 {[%clk 0:02:01.3]} 20. f4 {[%clk 0:02:04.4]} 20... g4 {[%clk 0:01:48.8]} 21.
Nc5 {[%clk 0:01:54.3]} 21... Qb5 {[%clk 0:01:39.4]} 0-1

[Event "*** Titled Tuesday Blitz"]
[Site "Chess.com"]
[Date "2020.05.12"]
[Round "3"]
[White "DryCounty"]
[Black "14Sokol88"]
[Result "1/2-1/2"]
[WhiteElo "2621"]
[BlackElo "2383"]
[TimeControl "180+1"]
[EndTime "10:26:37 PDT"]
[Termination "Game drawn by repetition"]

1. e4 {[%clk 0:03:00.9]} 1... c5 {[%clk 0:02:57.4]} 2. Nf3 {[%clk 0:03:00.5]}
2... e6 {[%clk 0:02:57.3]} 3. d4 {[%clk 0:03:00.8]} 3... cxd4 {[%clk 0:02:57.8]}
4. Nxd4 {[%clk 0:03:01.6]} 4... a6 {[%clk 0:02:57.7]} 5. Nc3 {[%clk 0:03:01.9]}
5... b5 {[%clk 0:02:56.5]} 6. Bd3 {[%clk 0:03:01]} 6... Bb7 {[%clk 0:02:55.9]}
7. O-O {[%clk 0:03:00.1]} 7... d6 {[%clk 0:02:47.8]} 8. a4 {[%clk 0:02:58.6]}
8... b4 {[%clk 0:02:46.9]} 9. Na2 {[%clk 0:02:58.4]} 9... a5 {[%clk 0:02:44]}
10. c3 {[%clk 0:02:57.8]} 10... bxc3 {[%clk 0:02:40.2]} 11. Nxc3 {[%clk
0:02:56.8]} 11... Nf6 {[%clk 0:02:34.2]} 12. Qb3 {[%clk 0:02:55.5]} 12... Ba6
{[%clk 0:01:57.6]} 13. Bxa6 {[%clk 0:02:44.5]} 13... Nxa6 {[%clk 0:01:58.3]} 14.
Qb7 {[%clk 0:02:27.9]} 14... Nc5 {[%clk 0:01:49.4]} 15. Qc6+ {[%clk 0:02:27.1]}
15... Nfd7 {[%clk 0:01:47.4]} 16. Ncb5 {[%clk 0:02:22.3]} 16... Rc8 {[%clk
0:01:44.8]} 17. Nxd6+ {[%clk 0:02:08.7]} 17... Bxd6 {[%clk 0:01:44.9]} 18. Qxd6
{[%clk 0:02:09.6]} 18... Nxe4 {[%clk 0:01:40.9]} 19. Qa3 {[%clk 0:01:59.4]}
19... Qe7 {[%clk 0:01:36.2]} 20. Qxe7+ {[%clk 0:01:57.1]} 20... Kxe7 {[%clk
0:01:37.1]} 21. f3 {[%clk 0:01:55.9]} 21... Nef6 {[%clk 0:01:27.2]} 22. b3
{[%clk 0:01:54]} 22... Nd5 {[%clk 0:01:24.6]} 23. Ba3+ {[%clk 0:01:52.2]} 23...
Kf6 {[%clk 0:01:23]} 24. Nb5 {[%clk 0:01:46.5]} 24... Rc2 {[%clk 0:01:15.7]} 25.
Rac1 {[%clk 0:01:30.7]} 25... Rhc8 {[%clk 0:01:15.4]} 26. Nd6 {[%clk 0:01:25.9]}
26... Rxc1 {[%clk 0:01:10.5]} 27. Rxc1 {[%clk 0:01:23.8]} 27... Rxc1+ {[%clk
0:01:10.6]} 28. Bxc1 {[%clk 0:01:24.7]} 28... Nc5 {[%clk 0:01:10]} 29. Bb2+
{[%clk 0:01:18.9]} 29... Kg6 {[%clk 0:01:04.3]} 30. Nc4 {[%clk 0:01:13.6]} 30...
Nxb3 {[%clk 0:01:03.5]} 31. Ne5+ {[%clk 0:01:11.8]} 31... Kf6 {[%clk 0:00:58.3]}
32. Nc6+ {[%clk 0:01:07.6]} 32... Kg6 {[%clk 0:00:55.2]} 33. Ne5+ {[%clk
0:01:06.7]} 33... Kf6 {[%clk 0:00:54.5]} 34. Nc6+ {[%clk 0:01:04.8]} 34... Kg6
{[%clk 0:00:51.6]} 35. Ne5+ {[%clk 0:01:04.7]} 1/2-1/2

[Event "*** Titled Tuesday Blitz"]
[Site "Chess.com"]
[Date "2020.05.12"]
[Round "3"]
[White "ViktoriyaTarasova"]
[Black "Rodchenkov_Vitalij"]
[Result "0-1"]
[WhiteElo "2202"]
[BlackElo "2439"]
[TimeControl "180+1"]
[EndTime "10:26:38 PDT"]
[Termination "Rodchenkov_Vitalij won by resignation"]

1. d4 {[%clk 0:03:00.9]} 1... d5 {[%clk 0:02:59.6]} 2. c4 {[%clk 0:03:00.9]}
2... c6 {[%clk 0:03:00]} 3. Nf3 {[%clk 0:03:01]} 3... Nf6 {[%clk 0:03:00.1]} 4.
Nc3 {[%clk 0:03:01.1]} 4... e6 {[%clk 0:02:59.6]} 5. Bg5 {[%clk 0:03:00.4]} 5...
h6 {[%clk 0:02:59.1]} 6. Bxf6 {[%clk 0:02:59.7]} 6... Qxf6 {[%clk 0:02:58.9]} 7.
Qb3 {[%clk 0:03:00]} 7... Nd7 {[%clk 0:02:53.6]} 8. e4 {[%clk 0:02:59.3]} 8...
dxe4 {[%clk 0:02:52.1]} 9. Nxe4 {[%clk 0:02:59]} 9... Qf4 {[%clk 0:02:52.2]} 10.
Bd3 {[%clk 0:02:58.9]} 10... Be7 {[%clk 0:02:49.4]} 11. O-O {[%clk 0:02:58.2]}
11... O-O {[%clk 0:02:48.2]} 12. c5 {[%clk 0:02:54.9]} 12... Nf6 {[%clk
0:02:37.5]} 13. Nxf6+ {[%clk 0:02:48.8]} 13... Bxf6 {[%clk 0:02:35.9]} 14. Rad1
{[%clk 0:02:49.3]} 14... Rd8 {[%clk 0:02:31.3]} 15. Qc4 {[%clk 0:02:28]} 15...
Bd7 {[%clk 0:02:27.1]} 16. Rfe1 {[%clk 0:02:23.5]} 16... Be8 {[%clk 0:02:18.9]}
17. Re4 {[%clk 0:02:17.7]} 17... Qc7 {[%clk 0:02:15.9]} 18. Bb1 {[%clk
0:02:12.6]} 18... Rd5 {[%clk 0:02:12.3]} 19. Qc2 {[%clk 0:02:11.1]} 19... g6
{[%clk 0:02:10.4]} 20. a3 {[%clk 0:01:55.7]} 20... Bg7 {[%clk 0:01:59]} 21. Ba2
{[%clk 0:01:55.9]} 21... Rdd8 {[%clk 0:01:58.2]} 22. Rde1 {[%clk 0:01:46.9]}
22... b6 {[%clk 0:01:57.2]} 23. b4 {[%clk 0:01:45.9]} 23... a5 {[%clk
0:01:55.6]} 24. Ne5 {[%clk 0:01:32.3]} 24... axb4 {[%clk 0:01:51.9]} 25. axb4
{[%clk 0:01:32.8]} 25... bxc5 {[%clk 0:01:47.1]} 26. bxc5 {[%clk 0:01:32.3]}
26... Qa5 {[%clk 0:01:42]} 27. R1e2 {[%clk 0:00:41.2]} 27... Bxe5 {[%clk
0:01:32.5]} 28. dxe5 {[%clk 0:00:23.5]} 28... Qxa2 {[%clk 0:01:29.3]} 0-1

[Event "*** Titled Tuesday Blitz"]
[Site "Chess.com"]
[Date "2020.05.12"]
[Round "3"]
[White "RobertoJBM"]
[Black "Raja3401"]
[Result "0-1"]
[WhiteElo "2587"]
[BlackElo "2776"]
[TimeControl "180+1"]
[EndTime "10:26:40 PDT"]
[Termination "Raja3401 won by resignation"]

1. d4 {[%clk 0:03:00.9]} 1... Nf6 {[%clk 0:02:59.7]} 2. c4 {[%clk 0:03:00]} 2...
e6 {[%clk 0:03:00]} 3. Nc3 {[%clk 0:02:59.2]} 3... Bb4 {[%clk 0:02:59.7]} 4. Qc2
{[%clk 0:02:59.6]} 4... O-O {[%clk 0:02:59.8]} 5. a3 {[%clk 0:02:58.9]} 5...
Bxc3+ {[%clk 0:03:00.3]} 6. Qxc3 {[%clk 0:02:59.8]} 6... d5 {[%clk 0:03:01.2]}
7. Nf3 {[%clk 0:02:55.3]} 7... dxc4 {[%clk 0:03:01.1]} 8. Qxc4 {[%clk
0:02:55.3]} 8... b6 {[%clk 0:03:02]} 9. Bg5 {[%clk 0:02:55]} 9... Ba6 {[%clk
0:03:00.6]} 10. Qa4 {[%clk 0:02:55]} 10... h6 {[%clk 0:03:00.5]} 11. Bh4 {[%clk
0:02:54.5]} 11... c5 {[%clk 0:02:52.6]} 12. e3 {[%clk 0:02:44.8]} 12... Bxf1
{[%clk 0:02:44.4]} 13. Kxf1 {[%clk 0:02:45.7]} 13... cxd4 {[%clk 0:02:41.4]} 14.
Qxd4 {[%clk 0:02:45.1]} 14... g5 {[%clk 0:02:21.1]} 15. Bg3 {[%clk 0:02:38]}
15... Nc6 {[%clk 0:02:20.5]} 16. Qxd8 {[%clk 0:02:35.8]} 16... Rfxd8 {[%clk
0:02:21.4]} 17. Ke2 {[%clk 0:02:36.4]} 17... Na5 {[%clk 0:02:14.4]} 18. Be5
{[%clk 0:01:44.8]} 18... Ne4 {[%clk 0:02:11.9]} 19. Rad1 {[%clk 0:01:39.6]}
19... Nc4 {[%clk 0:02:07.7]} 20. Bd4 {[%clk 0:01:33.9]} 20... Rd5 {[%clk
0:02:05.3]} 21. a4 {[%clk 0:01:29.4]} 21... e5 {[%clk 0:01:43]} 22. Bc3 {[%clk
0:00:36.1]} 22... Nxc3+ {[%clk 0:01:38.6]} 23. bxc3 {[%clk 0:00:37]} 23... Rad8
{[%clk 0:01:37.4]} 24. h4 {[%clk 0:00:33.6]} 24... g4 {[%clk 0:01:32.5]} 25. Nh2
{[%clk 0:00:26.6]} 25... Rd2+ {[%clk 0:01:27.6]} 26. Rxd2 {[%clk 0:00:27]} 26...
Rxd2+ {[%clk 0:01:28.5]} 27. Ke1 {[%clk 0:00:27.4]} 27... Ra2 {[%clk 0:01:23.8]}
28. Rf1 {[%clk 0:00:27.1]} 28... h5 {[%clk 0:01:18.9]} 29. f3 {[%clk 0:00:26.3]}
29... g3 {[%clk 0:01:17.8]} 0-1